bitfinex-derivatives/quotes_BTCF0:USTF0_20240905
["timestamp","ask_amount","ask_price","bid_price","bid_amount"]
[1725563045444,0.15852853,56600.0,56599.0,0.088354]
[1725563045634,0.21275932,56600.0,56599.0,1.588354]
[1725563046650,0.00980235,56604.0,56599.0,1.5]
[1725563046955,0.00026514,56605.0,56604.0,0.088346]
[1725563047156,0.00026514,56605.0,56604.0,0.090346]
[1725563048243,0.00026514,56605.0,56604.0,0.091346]
[1725563048448,0.00026514,56605.0,56604.0,0.092346]
[1725563048649,0.0102909,56605.0,56604.0,0.092346]
[1725563048852,0.00026514,56605.0,56604.0,0.092346]
[1725563050555,0.08860914,56605.0,56604.0,0.092346]
[1725563051445,0.09883268,56605.0,56604.0,0.092346]
[1725563052249,0.09883268,56605.0,56604.0,0.004]
[1725563052455,0.46717668,56605.0,56604.0,0.004]
[1725563053655,0.62806143,56605.0,56604.0,0.004]
[1725563054051,0.34806143,56605.0,56604.0,0.004]
[1725563054356,0.28468535,56605.0,56604.0,0.004]
[1725563054556,0.25971743,56605.0,56604.0,0.004]
[1725563054757,0.19634135,56605.0,56604.0,0.092346]
[1725563060653,0.09883268,56605.0,56604.0,0.092346]
[1725563072377,0.09883268,56605.0,56604.0,0.004]
[1725563072378,0.18717668,56605.0,56604.0,0.004]
[1725563072772,0.23297668,56605.0,56604.0,0.004]
[1725563075070,0.23297668,56605.0,56598.0,0.002]
[1725563075071,0.265062,56599.0,56598.0,0.002]
[1725563075278,1.505862,56599.0,56598.0,0.002]
[1725563075793,1.66676864,56599.0,56598.0,0.002]
[1725563076180,0.17672,56595.0,56594.0,0.00026514]
[1725563076372,0.55424194,56595.0,56594.0,0.00026514]
[1725563076675,0.61762664,56595.0,56594.0,0.00026514]
[1725563077490,0.61762666,56595.0,56594.0,0.00026514]
[1725563078572,0.61862666,56595.0,56594.0,0.00126514]
[1725563078975,0.33962666,56595.0,56594.0,0.00226514]
[1725563079175,0.27624196,56595.0,56594.0,0.00226514]
[1725563079481,0.42683199,56595.0,56594.0,0.00226514]
[1725563079672,0.55624196,56595.0,56594.0,0.00226514]
[1725563079872,0.61962666,56595.0,56594.0,0.00226514]
[1725563082686,0.70798666,56595.0,56594.0,0.00226514]
[1725563083685,0.54708,56595.0,56594.0,0.00226514]
[1725563086110,0.63544,56595.0,56594.0,0.00226514]
[1725563086386,0.63544,56595.0,56586.0,0.0041]
[1725563086387,0.176744,56587.0,56586.0,0.0041]
[1725563086592,0.176744,56587.0,56578.0,0.05298274]
[1725563086593,0.088385,56579.0,56578.0,0.0041]
[1725563086790,0.088385,56579.0,56578.0,0.088386]
[1725563087588,0.088385,56579.0,56578.0,0.14123134]
[1725563087783,0.088385,56579.0,56578.0,0.088386]
[1725563087990,0.088385,56579.0,56578.0,0.14122968]
[1725563088488,0.088385,56579.0,56578.0,0.088386]
[1725563089293,0.088385,56579.0,56578.0,0.093386]
[1725563089481,0.088385,56579.0,56578.0,0.460186]
[1725563089987,0.176773,56579.0,56578.0,0.42463558]
[1725563090196,0.176773,56579.0,56578.0,0.3718]
[1725563091996,0.176773,56579.0,56578.0,0.011]
[1725563096191,0.537573,56579.0,56578.0,0.011]
[1725563097688,0.176773,56579.0,56578.0,0.011]
[1725563097892,0.176773,56579.0,56578.0,0.099386]
[1725563098390,0.088385,56579.0,56578.0,0.099386]
[1725563099696,0.088385,56579.0,56578.0,0.15222158]
[1725563099989,0.088385,56579.0,56578.0,0.099386]
[1725563100799,0.088385,56579.0,56578.0,0.15222158]
[1725563100993,0.088385,56579.0,56578.0,0.15224637]
[1725563101487,0.088385,56579.0,56578.0,0.099386]
[1725563102395,0.01017,56584.0,56581.0,0.088379]
[1725563102396,0.088381,56582.0,56581.0,0.088379]
[1725563102589,0.088381,56582.0,56581.0,0.42127305]
[1725563102782,0.088381,56582.0,56581.0,0.368379]
[1725563102994,0.088381,56582.0,56581.0,0.370379]
[1725563103498,0.088381,56582.0,56581.0,0.42327305]
[1725563103884,0.088381,56582.0,56581.0,0.78407305]
[1725563104083,0.00026514,56584.0,56583.0,0.088379]
[1725563104293,0.0041,56594.0,56588.0,0.088369]
[1725563104593,0.0041,56594.0,56583.0,0.370379]
[1725563104594,0.0041,56594.0,56593.0,0.088363]
[1725563104790,0.3608,56600.0,56599.0,0.088354]
[1725563105093,0.3608,56600.0,56599.0,0.358354]
[1725563106900,0.451152,56600.0,56599.0,0.090354]
[1725563107897,0.451152,56600.0,56599.0,0.360354]
[1725563108490,0.451152,56600.0,56599.0,0.002]
[1725563109192,0.539504,56600.0,56599.0,0.002]
[1725563109693,0.451152,56600.0,56599.0,0.002]
[1725563112698,0.539504,56600.0,56599.0,0.002]
[1725563113084,0.627856,56600.0,56599.0,0.002]
[1725563113291,1.227856,56600.0,56599.0,0.002]
[1725563113698,1.38875543,56600.0,56599.0,0.002]
[1725563116891,1.47710743,56600.0,56599.0,1e-06]
[1725563117096,1.47710743,56600.0,56594.0,0.00026514]
[1725563117097,0.26508,56595.0,56594.0,0.00026514]
[1725563117296,1.00339757,56595.0,56594.0,0.00026514]
[1725563117492,1.66677943,56595.0,56594.0,0.00026514]
[1725563117696,1.66677943,56595.0,56594.0,1.4e-07]
[1725563118295,0.265083,56594.0,56593.0,1.4e-07]
[1725563118603,0.47398243,56594.0,56593.0,1.4e-07]
[1725563118801,1.07398243,56594.0,56593.0,1.4e-07]
[1725563119602,0.265107,56589.0,56588.0,0.00026514]
[1725563119803,1.00342457,56589.0,56588.0,0.00026514]
[1725563120007,1.66680643,56589.0,56588.0,0.00022514]
[1725563120801,0.85456627,56589.0,56588.0,0.00022514]
[1725563120997,0.85656627,56589.0,56588.0,0.00022514]
[1725563121204,0.627907,56589.0,56588.0,0.00022514]
[1725563122403,0.910907,56589.0,56588.0,0.00022514]
[1725563122800,1.271707,56589.0,56588.0,0.00022514]
[1725563123004,1.28195222,56589.0,56588.0,0.00022514]
[1725563123217,1.88195222,56589.0,56588.0,0.00022514]
[1725563128004,1.28195222,56589.0,56588.0,0.00022514]
[1725563128804,1.53779079,56589.0,56588.0,0.00022514]
[1725563129509,2.01360516,56589.0,56588.0,1.4e-07]
[1725563129714,0.265137,56583.0,56582.0,0.0041]
[1725563130001,0.265137,56583.0,56574.0,0.092492]
[1725563130002,0.088391,56575.0,56574.0,0.092492]
[1725563130206,0.088391,56575.0,56574.0,0.088392]
[1725563132813,0.088391,56575.0,56574.0,0.098392]
[1725563133508,0.088391,56575.0,56574.0,0.108392]
[1725563135712,0.089746,56578.0,56577.0,0.088388]
[1725563135918,0.08864814,56580.0,56579.0,0.088385]
[1725563136217,0.00026514,56580.0,56579.0,0.14323093]
[1725563136417,0.00026514,56580.0,56579.0,0.090385]
[1725563137314,0.00026514,56580.0,56579.0,1.590385]
[1725563138010,0.08864814,56580.0,56579.0,1.590385]
[1725563138407,0.45703114,56580.0,56579.0,0.002]
[1725563138620,0.45703114,56580.0,56579.0,0.05987577]
[1725563138804,0.45703114,56580.0,56579.0,0.011]
[1725563139310,0.17703114,56580.0,56579.0,0.06387577]
[1725563139504,0.17703114,56580.0,56579.0,0.011]
[1725563139913,0.17703114,56580.0,56579.0,0.06388798]
[1725563140316,0.17703114,56580.0,56579.0,0.011]
[1725563140516,0.17703114,56580.0,56579.0,0.099385]
[1725563141018,0.17703114,56580.0,56579.0,0.011]
[1725563141219,0.54541414,56580.0,56579.0,0.06390197]
[1725563142327,0.54541414,56580.0,56579.0,0.011]
[1725563142712,0.54541414,56580.0,56579.0,0.06393927]
[1725563142916,0.59441414,56580.0,56579.0,0.06393927]
[1725563143222,0.59441414,56580.0,56579.0,0.011]
[1725563143409,0.59441414,56580.0,56579.0,0.06393927]
[1725563143810,0.64867533,56580.0,56579.0,0.011]
[1725563146122,0.60984246,56580.0,56579.0,0.011]
[1725563147521,0.78573263,56580.0,56579.0,0.011]
[1725563148617,0.67324624,56580.0,56579.0,0.011]
[1725563148918,0.80332165,56580.0,56579.0,0.011]
[1725563149612,0.60984246,56580.0,56579.0,0.011]
[1725563150821,0.55558127,56580.0,56579.0,0.011]
[1725563152524,0.91638127,56580.0,56579.0,0.011]
[1725563153325,0.63638127,56580.0,56579.0,0.011]
[1725563159025,0.54799827,56580.0,56579.0,0.011]
[1725563159234,0.54799827,56580.0,56579.0,0.099385]
[1725563159725,0.54799827,56580.0,56579.0,0.15232427]
[1725563163131,0.18719827,56580.0,56579.0,0.15232427]
[1725563163323,0.18719827,56580.0,56579.0,0.099385]
[1725563163934,0.18719827,56580.0,56579.0,0.15238743]
[1725563164230,0.18719827,56580.0,56579.0,0.011]
[1725563164444,0.55558127,56580.0,56579.0,0.011]
[1725563164734,0.265182,56573.0,56572.0,0.05300243]
[1725563164944,0.3608,56573.0,56569.0,0.05326757]
[1725563165137,0.28,56570.0,56569.0,0.05326757]
[1725563165337,0.28,56570.0,56569.0,0.00026514]
[1725563165638,0.545197,56570.0,56569.0,0.00026514]
[1725563166030,0.59946478,56570.0,56569.0,0.00026514]
[1725563166230,0.60046478,56570.0,56569.0,0.00726514]
[1725563166831,0.7766526,56570.0,56569.0,0.00726514]
[1725563167036,0.60046478,56570.0,56569.0,0.00726514]
[1725563167239,0.77662388,56570.0,56569.0,0.00726514]
[1725563167535,0.60046478,56570.0,56569.0,0.00726514]
[1725563168135,0.60046478,56570.0,56569.0,0.01326514]
[1725563169327,0.77662432,56570.0,56569.0,0.01326514]
[1725563170124,1.13742432,56570.0,56569.0,0.01326514]
[1725563170533,1.14748088,56570.0,56569.0,0.01326514]
[1725563172240,0.97132134,56570.0,56569.0,0.01326514]
[1725563172641,0.17682,56563.0,56562.0,0.0041]
[1725563172934,0.088422,56555.0,56554.0,0.0041]
[1725563173136,0.176854,56552.0,56551.0,0.0925]
[1725563173339,0.23112178,56552.0,56551.0,0.0925]
[1725563174040,0.176854,56552.0,56551.0,0.16306893]
[1725563174337,0.176854,56552.0,56551.0,0.0975]
[1725563174544,0.088427,56552.0,56551.0,0.0975]
[1725563175536,0.088427,56552.0,56551.0,0.1025]
[1725563176046,0.176854,56552.0,56551.0,0.1025]
[1725563176234,0.088427,56552.0,56551.0,0.15536094]
[1725563177234,0.088427,56552.0,56551.0,0.1025]
[1725563177552,0.088427,56552.0,56551.0,0.190929]
[1725563177748,0.0441846,56552.0,56551.0,0.190929]
[1725563178346,0.0441846,56552.0,56551.0,0.26137834]
[1725563179038,0.0441846,56552.0,56551.0,0.190929]
[1725563179242,0.0441846,56552.0,56551.0,0.26137834]
[1725563179440,0.0441846,56552.0,56551.0,0.190929]
[1725563180241,0.0441846,56552.0,56551.0,0.1025]
[1725563180947,0.0441846,56552.0,56551.0,0.0552]
[1725563181679,0.1326116,56552.0,56551.0,0.0552]
[1725563182246,0.4126116,56552.0,56551.0,0.01]
[1725563182753,0.0441846,56552.0,56551.0,0.01]
[1725563182950,0.0441846,56552.0,56551.0,0.098429]
[1725563183445,0.088424,56555.0,56554.0,0.088421]
[1725563183840,0.088424,56555.0,56554.0,0.090421]
[1725563184553,0.088424,56555.0,56554.0,0.092421]
[1725563185950,0.088424,56555.0,56554.0,0.453221]
[1725563186348,0.088424,56555.0,56554.0,0.092421]
[1725563186745,0.088424,56555.0,56554.0,0.453221]
[1725563188045,0.00026514,56557.0,56556.0,0.088421]
[1725563188351,0.00026514,56557.0,56556.0,0.090421]
[1725563188953,0.08868414,56557.0,56556.0,0.090421]
[1725563189553,0.09068414,56557.0,56556.0,0.090421]
[1725563189953,0.00226514,56557.0,56556.0,0.090421]
[1725563190156,0.00326514,56557.0,56556.0,0.178842]
[1725563191450,0.00326514,56557.0,56556.0,0.24929134]
[1725563193247,0.00326514,56557.0,56556.0,0.178842]
[1725563193762,0.00326514,56557.0,56556.0,0.090421]
[1725563193959,0.00326514,56557.0,56556.0,0.002]
[1725563193960,0.18010314,56557.0,56556.0,0.002]
[1725563195557,0.18010314,56557.0,56556.0,0.05493517]
[1725563195752,0.18010314,56557.0,56556.0,0.05493476]
[1725563196180,0.2786581,56557.0,56556.0,0.05493476]
[1725563199359,0.2786581,56557.0,56556.0,0.002]
[1725563200956,0.26852214,56557.0,56556.0,0.002]
[1725563202056,0.18010314,56557.0,56556.0,0.002]
[1725563202961,0.18010314,56557.0,56556.0,0.090421]
[1725563203351,0.18010314,56557.0,56556.0,0.002]
[1725563205865,0.18010314,56557.0,56556.0,0.090421]
[1725563209560,0.18010314,56557.0,56556.0,0.002]
[1725563211464,0.26852214,56557.0,56556.0,0.002]
[1725563212061,0.27252214,56557.0,56556.0,0.002]
[1725563212260,0.63332214,56557.0,56556.0,0.002]
[1725563212867,0.63832214,56557.0,56556.0,0.004]
[1725563213272,0.63232214,56557.0,56556.0,0.003]
[1725563213460,0.63932214,56557.0,56556.0,0.004]
[1725563213662,0.64532214,56557.0,56556.0,0.004]
[1725563213863,0.63832214,56557.0,56556.0,0.003]
[1725563214170,0.65132214,56557.0,56556.0,0.004]
[1725563216176,0.6601443,56557.0,56556.0,0.004]
[1725563216370,0.56290314,56557.0,56556.0,0.004]
[1725563217671,1.16290314,56557.0,56556.0,0.004]
[1725563217882,1.25132214,56557.0,56556.0,0.004]
[1725563218276,0.61719233,56557.0,56556.0,0.004]
[1725563218767,0.7934561,56557.0,56556.0,0.004]
[1725563219080,0.61661258,56557.0,56556.0,0.004]
[1725563219377,0.36186111,56557.0,56556.0,0.004]
[1725563219565,0.16797333,56557.0,56556.0,0.004]
[1725563219765,0.52877333,56557.0,56556.0,0.004]
[1725563219970,0.72266111,56557.0,56556.0,0.004]
[1725563220173,0.52877333,56557.0,56556.0,0.004]
[1725563220369,0.52877333,56557.0,56556.0,0.092421]
[1725563220875,0.70505774,56557.0,56556.0,0.092421]
[1725563221063,0.52877333,56557.0,56556.0,0.092421]
[1725563221875,0.44035433,56557.0,56556.0,0.092421]
[1725563222275,0.07955433,56557.0,56556.0,0.453221]
[1725563222475,0.07955433,56557.0,56556.0,0.092421]
[1725563222672,0.07953873,56557.0,56556.0,0.092421]
[1725563222973,0.02526514,56557.0,56556.0,0.092421]
[1725563223882,0.02526514,56557.0,56556.0,0.869263]
[1725563224578,0.02526514,56557.0,56556.0,0.180842]
[1725563224778,0.02526514,56557.0,56556.0,0.092421]
[1725563225479,0.02526514,56557.0,56556.0,1.592421]
[1725563230078,0.02526514,56557.0,56556.0,0.092421]
[1725563231580,0.11368414,56557.0,56556.0,0.092421]
[1725563234068,0.11368414,56557.0,56556.0,0.091421]
[1725563234069,0.10168414,56557.0,56556.0,0.091421]
[1725563234273,0.10168414,56557.0,56556.0,0.003]
[1725563234274,0.27852214,56557.0,56556.0,0.003]
[1725563234477,0.24438312,56557.0,56556.0,0.003]
[1725563235076,0.42366753,56557.0,56556.0,0.003]
[1725563235273,0.24738312,56557.0,56556.0,0.003]
[1725563235881,0.23438312,56557.0,56556.0,0.002]
[1725563236078,1.1086856,56557.0,56556.0,0.002]
[1725563236371,1.1086856,56557.0,56546.0,0.00026514]
[1725563236372,0.088433,56548.0,56546.0,0.00026514]
[1725563236573,0.088435,56547.0,56546.0,0.00026514]
[1725563236782,0.1760447,56553.0,56548.0,0.088432]
[1725563236783,0.088433,56549.0,56548.0,0.088432]
[1725563237001,0.088433,56549.0,56548.0,0.370432]
[1725563237002,0.14271965,56549.0,56548.0,0.370432]
[1725563237281,0.088433,56549.0,56548.0,0.370432]
[1725563237584,0.088433,56549.0,56548.0,0.368432]
[1725563237981,0.14271846,56549.0,56548.0,0.088432]
[1725563238179,0.088433,56549.0,56548.0,0.088432]
[1725563238681,0.091433,56549.0,56548.0,0.088432]
[1725563238981,0.088435,56547.0,56546.0,0.08870114]
[1725563240587,0.090435,56547.0,56546.0,0.08870114]
[1725563240890,0.003,56547.0,56546.0,1.18753714]
[1725563241275,0.0041,56555.0,56554.0,0.088424]
[1725563241480,0.08868614,56557.0,56556.0,0.088421]
[1725563241678,0.08868614,56557.0,56556.0,0.090421]
[1725563241882,0.088421,56556.0,56555.0,0.07060599]
[1725563242182,0.088422,56555.0,56554.0,0.090424]
[1725563242384,0.449222,56555.0,56554.0,0.090424]
[1725563243586,0.449222,56555.0,56554.0,0.16102999]
[1725563243792,0.092422,56555.0,56554.0,0.16102999]
[1725563244500,0.092422,56555.0,56554.0,0.16103724]
[1725563244674,0.092422,56555.0,56554.0,0.090424]
[1725563244877,0.092422,56555.0,56554.0,0.16103666]
[1725563245075,0.094422,56555.0,56554.0,0.16103666]
[1725563245278,0.094422,56555.0,56554.0,0.10027881]
[1725563245880,0.094422,56555.0,56554.0,0.17089147]
[1725563246175,0.455222,56555.0,56554.0,0.090424]
[1725563246377,0.543644,56555.0,56554.0,0.002]
[1725563246779,0.543644,56555.0,56554.0,0.370424]
[1725563246780,0.455222,56555.0,56554.0,0.370424]
[1725563247188,0.455222,56555.0,56554.0,0.44103666]
[1725563247394,0.452222,56555.0,56554.0,0.44103666]
[1725563247587,0.456222,56555.0,56554.0,0.44103666]
[1725563247883,0.3678,56555.0,56554.0,0.370424]
[1725563248084,0.3658,56555.0,56554.0,0.370424]
[1725563248384,0.3698,56555.0,56554.0,0.458848]
[1725563248585,0.009,56555.0,56554.0,0.458848]
[1725563248787,1.4e-07,56555.0,56554.0,1.596496]
[1725563249089,0.00026514,56557.0,56556.0,0.265263]
[1725563249286,0.00026514,56557.0,56556.0,0.626063]
[1725563249484,0.00026514,56557.0,56556.0,1.228063]
[1725563249686,0.00026514,56557.0,56556.0,1.276663]
[1725563251182,0.00026514,56557.0,56556.0,1.188242]
[1725563251383,0.00626514,56557.0,56556.0,1.188242]
[1725563251587,0.00626514,56557.0,56556.0,0.588242]
[1725563254395,0.00626514,56557.0,56556.0,0.451221]
[1725563255096,0.00626514,56557.0,56556.0,0.539642]
[1725563256510,0.00026514,56557.0,56556.0,0.544642]
[1725563256698,0.00126514,56557.0,56556.0,0.552642]
[1725563257306,0.00026514,56557.0,56556.0,0.544642]
[1725563257505,0.00026514,56557.0,56556.0,0.549642]
[1725563258003,0.00026514,56557.0,56556.0,0.461221]
[1725563258499,0.00026514,56557.0,56556.0,0.456221]
[1725563258803,0.37099092,56557.0,56556.0,0.012]
[1725563259002,0.40726237,56557.0,56556.0,0.012]
[1725563259201,0.23137575,56557.0,56556.0,0.012]
[1725563259512,0.29480002,56557.0,56556.0,0.012]
[1725563259720,0.4886878,56557.0,56556.0,0.012]
[1725563260014,0.4926878,56557.0,56556.0,0.002]
[1725563260218,0.23537575,56557.0,56556.0,0.002]
[1725563260606,0.4182182,56557.0,56556.0,0.003]
[1725563262613,0.26417967,56553.0,56552.0,0.088427]
[1725563262918,0.31845228,56553.0,56552.0,0.088427]
[1725563263122,0.14270161,56553.0,56552.0,0.088427]
[1725563263419,0.54355067,56555.0,56554.0,0.088424]
[1725563263613,0.456222,56555.0,56554.0,0.090424]
[1725563263916,0.449222,56555.0,56554.0,0.090424]
[1725563264121,0.456222,56555.0,56554.0,0.091424]
[1725563264711,0.463222,56555.0,56554.0,0.092424]
[1725563264912,0.3748,56555.0,56554.0,0.092424]
[1725563265119,0.3748,56555.0,56554.0,0.372424]
[1725563265713,0.3768,56555.0,56554.0,0.372424]
[1725563266126,0.3758,56555.0,56554.0,0.371424]
[1725563266519,0.464222,56555.0,56554.0,0.091424]
[1725563266827,0.504522,56555.0,56554.0,0.003]
[1725563267122,0.511522,56555.0,56554.0,0.004]
[1725563269420,0.599944,56555.0,56554.0,0.004]
[1725563270424,0.4231,56555.0,56554.0,0.372424]
[1725563270721,0.016,56555.0,56554.0,0.733224]
[1725563270926,0.104422,56555.0,56554.0,0.453224]
[1725563273417,0.104422,56555.0,56554.0,0.092424]
[1725563273622,0.104422,56555.0,56554.0,0.004]
[1725563274828,0.104422,56555.0,56554.0,0.092424]
[1725563276726,0.192844,56555.0,56554.0,0.092424]
[1725563276929,0.192844,56555.0,56554.0,0.004]
[1725563277833,0.192844,56555.0,56554.0,0.092424]
[1725563278223,0.016,56555.0,56554.0,0.092424]
[1725563278426,0.016,56555.0,56554.0,0.180848]
[1725563278632,0.016,56555.0,56554.0,0.092424]
[1725563278835,0.016,56555.0,56554.0,1.592424]
[1725563279035,0.016,56555.0,56554.0,0.092424]
[1725563279231,0.104422,56555.0,56554.0,0.092424]
[1725563282934,0.472844,56555.0,56554.0,0.004]
[1725563283129,1.207666,56555.0,56554.0,0.004]
[1725563283339,0.6175969,56555.0,56554.0,0.004]
[1725563283535,0.2027749,56555.0,56554.0,0.004]
[1725563285440,0.8027749,56555.0,56554.0,0.004]
[1725563286638,0.8911969,56555.0,56554.0,0.004]
[1725563286842,0.17687,56547.0,56546.0,0.00436514]
[1725563287039,0.17687,56547.0,56546.0,0.00026514]
[1725563287040,0.89847,56547.0,56546.0,0.00026514]
[1725563287744,1.17847,56547.0,56546.0,0.00026514]
[1725563287938,1.17947,56547.0,56546.0,0.00026514]
[1725563289436,0.001,56547.0,56546.0,0.36870114]
[1725563290035,0.002,56547.0,56546.0,0.08870114]
[1725563290451,0.090435,56547.0,56546.0,0.08870114]
[1725563291844,0.002,56547.0,56546.0,1.06696045]
[1725563292142,0.002,56547.0,56546.0,1.42776045]
[1725563292339,0.002,56547.0,56546.0,1.51619645]
[1725563292340,1e-06,56547.0,56546.0,1.51619645]
[1725563292545,0.0041,56554.0,56553.0,0.17685]
[1725563292850,0.3608,56562.0,56556.0,0.088421]
[1725563293051,0.3608,56562.0,56556.0,0.090421]
[1725563294346,0.00126514,56557.0,56556.0,0.090421]
[1725563295152,0.00226514,56557.0,56556.0,0.090421]
[1725563295953,0.00126514,56557.0,56556.0,0.090421]
[1725563296157,0.00026514,56557.0,56556.0,0.090421]
[1725563296347,0.00126514,56557.0,56556.0,0.090421]
[1725563297355,0.00026514,56557.0,56556.0,0.090421]
[1725563297557,0.00126514,56557.0,56556.0,0.090421]
[1725563297754,0.00226514,56557.0,56556.0,0.090421]
[1725563297948,0.09068414,56557.0,56556.0,0.090421]
[1725563298348,0.08968414,56557.0,56556.0,0.090421]
[1725563298644,0.09268414,56557.0,56556.0,0.002]
[1725563298847,1.14290314,56557.0,56556.0,0.002]
[1725563299053,0.54290314,56557.0,56556.0,0.002]
[1725563299456,0.54690314,56557.0,56556.0,0.002]
[1725563299658,0.59510314,56557.0,56556.0,0.002]
[1725563299863,0.59710314,56557.0,56556.0,0.002]
[1725563300048,0.59110314,56557.0,56556.0,0.002]
[1725563300249,0.59810314,56557.0,56556.0,0.003]
[1725563300955,1.28652214,56557.0,56556.0,0.003]
[1725563301359,1.28652214,56557.0,56556.0,0.004]
[1725563301360,1.28852214,56557.0,56556.0,0.004]
[1725563301863,1.29052214,56557.0,56556.0,0.004]
[1725563302754,0.176864,56549.0,56546.0,0.00026514]
[1725563303058,0.17687,56547.0,56546.0,0.00026514]
[1725563304363,0.313005,56547.0,56546.0,0.00026514]
[1725563304554,0.913005,56547.0,56546.0,0.00026514]
[1725563304957,0.92331198,56547.0,56546.0,0.00026514]
[1725563305265,0.92431198,56547.0,56546.0,0.00026514]
[1725563305967,0.97191198,56547.0,56546.0,0.00026514]
[1725563306464,0.37191198,56547.0,56546.0,0.00026514]
[1725563311860,0.176892,56540.0,56539.0,0.0041]
[1725563312069,0.6408,56540.0,56532.0,0.137257]
[1725563312373,0.088457,56533.0,56532.0,0.137257]
[1725563312554,0.088457,56533.0,56532.0,0.0488]
[1725563313167,0.088457,56533.0,56532.0,0.137258]
[1725563313362,0.088457,56533.0,56532.0,0.151258]
[1725563313662,0.176914,56533.0,56532.0,0.014]
[1725563314267,0.545371,56533.0,56532.0,0.014]
[1725563314567,0.546371,56533.0,56532.0,0.028]
[1725563315160,0.547371,56533.0,56532.0,0.028]
[1725563316065,0.267371,56533.0,56532.0,0.028]
[1725563317873,0.27725249,56533.0,56532.0,0.028]
[1725563318171,0.55725249,56533.0,56532.0,0.028]
[1725563318361,0.17693,56528.0,56527.0,0.00026514]
[1725563318669,0.906195,56528.0,56527.0,0.00026514]
[1725563319062,0.91493841,56528.0,56527.0,0.00026514]
[1725563319670,0.91593841,56528.0,56527.0,0.01226514]
[1725563319867,0.91693841,56528.0,56527.0,0.02526514]
[1725563320457,1.51693841,56528.0,56527.0,0.02526514]
[1725563320886,1.60540341,56528.0,56527.0,1.4e-07]
[1725563322370,0.265431,56520.0,56519.0,0.1791]
[1725563322568,0.906231,56520.0,56519.0,0.175]
[1725563322766,1.506231,56520.0,56519.0,0.175]
[1725563323470,0.17698,56512.0,56511.0,0.0041]
[1725563323671,0.79328986,56512.0,56509.0,1.5]
[1725563323872,0.092493,56510.0,56509.0,1.5]
[1725563324064,0.088493,56510.0,56509.0,1.5]
[1725563324575,0.088496,56508.0,56507.0,0.01021094]
[1725563324770,0.088499,56506.0,56505.0,0.0885]
[1725563324968,0.088499,56506.0,56504.0,0.3755]
[1725563324969,0.088501,56505.0,56504.0,0.046]
[1725563325362,0.457002,56505.0,56504.0,0.046]
[1725563325671,0.28,56505.0,56498.0,0.0451]
[1725563325975,0.45331,56499.0,56498.0,0.0451]
[1725563326274,0.45331,56499.0,56498.0,0.05533069]
[1725563326473,0.45331,56499.0,56498.0,0.14384169]
[1725563327371,0.45331,56499.0,56498.0,0.05533069]
[1725563327977,0.45431,56499.0,56498.0,0.05533069]
[1725563329475,0.45431,56499.0,56498.0,0.01023069]
[1725563329679,0.45431,56499.0,56496.0,0.088514]
[1725563329680,0.088513,56497.0,56496.0,0.088514]
[1725563329873,0.092513,56497.0,56496.0,0.088514]
[1725563330276,0.092513,56497.0,56495.0,0.0484]
[1725563330277,0.092513,56497.0,56493.0,0.328]
[1725563330477,0.088518,56495.0,56494.0,0.088518]
[1725563331176,0.088512,56498.0,56497.0,0.088511]
[1725563331373,0.088512,56498.0,56497.0,0.368511]
[1725563332373,0.088512,56498.0,56497.0,0.088511]
[1725563334170,0.1857527,56498.0,56497.0,0.088511]
[1725563334368,0.088515,56496.0,56495.0,0.05292639]
[1725563334777,0.092515,56496.0,56495.0,0.14144039]
[1725563334984,0.092515,56496.0,56495.0,0.088514]
[1725563335883,0.093515,56496.0,56495.0,0.088514]
[1725563336574,0.094515,56496.0,56495.0,0.088514]
[1725563336972,0.18303,56496.0,56495.0,0.088514]
[1725563337576,0.13874075,56496.0,56495.0,0.088514]
[1725563337785,0.05022575,56496.0,56495.0,0.088514]
[1725563339373,0.13874075,56496.0,56495.0,1.588514]
[1725563340085,0.13874075,56496.0,56495.0,0.088514]
[1725563340468,0.177032,56495.0,56494.0,0.07056853]
[1725563340676,0.284,56495.0,56493.0,0.048]
[1725563340874,0.088519,56493.0,56492.0,0.08852]
[1725563341074,0.181038,56493.0,56492.0,0.08852]
[1725563341275,0.177038,56493.0,56492.0,0.08852]
[1725563341469,0.177038,56493.0,56492.0,0.14126006]
[1725563341669,0.088519,56493.0,56492.0,0.14126006]
[1725563341871,0.088519,56493.0,56492.0,0.15135359]
[1725563342185,0.089519,56493.0,56492.0,0.09861353]
[1725563343084,0.178038,56493.0,56492.0,0.09861353]
[1725563343586,0.178038,56493.0,56492.0,0.08852]
[1725563343884,0.178038,56493.0,56489.0,0.07056853]
[1725563343885,0.088524,56490.0,56489.0,0.07056853]
[1725563344085,0.088527,56488.0,56487.0,0.15909553]
[1725563344283,0.449327,56488.0,56487.0,0.15909553]
[1725563344681,0.3648,56488.0,56486.0,0.07056853]
[1725563344885,0.08853,56486.0,56483.0,0.07056853]
[1725563345085,0.537866,56484.0,56483.0,0.05281536]
[1725563345277,0.088544,56477.0,56476.0,0.0041]
[1725563345479,0.088544,56477.0,56474.0,0.01033139]
[1725563345480,0.6448,56477.0,56474.0,0.01033139]
[1725563345682,0.088551,56473.0,56472.0,0.0471]
[1725563345881,0.092551,56473.0,56472.0,0.0471]
[1725563346189,0.088555,56470.0,56469.0,0.0481]
[1725563346380,0.092555,56470.0,56469.0,0.13635728]
[1725563346582,0.092555,56470.0,56469.0,0.27132742]
[1725563346780,0.092555,56470.0,56469.0,0.0481]
[1725563346986,0.004,56470.0,56469.0,0.14688757]
[1725563347286,0.453355,56470.0,56469.0,0.01023057]
[1725563347491,0.453355,56470.0,56469.0,0.088557]
[1725563347990,0.455355,56470.0,56469.0,0.088557]
[1725563348593,0.08856,56467.0,56466.0,0.11006067]
[1725563348882,0.09256,56467.0,56466.0,0.05724991]
[1725563349498,0.004,56467.0,56466.0,0.74581191]
[1725563349786,0.004,56467.0,56466.0,0.14581191]